Workbook

Sheet Документ
U2: Приложение № 5 к постановлению от .10.2018г. №
A3: Перечень муниципальных программ МО Красноуфимский округ, подлежащих реализации в 2018 году
A4: Наименование муниципальной программы (подпрограммы) | D4: Код целевой статьи | L4: Объем бюджетных ассигнований на финансовое обеспечение реализации муниципальной программы, рублей | U4: Исполнение за 9 месяцев 2018г.
B5: Вед. | C5: Разд. | E5: Расх. | S5: Сумма на 2019 год | T5: Сумма на 2020 год | U5: в рублях | V5: %
A6: Муниципальная программа МО Красноуфимский округ "Повышение эффективности управления муниципальной собственностью МО Красноуфимский округ до 2020 года" | B6: 000 | C6: 0000 | D6: 0100000000 | E6: 000 | F6: 000 | L6: 9469213.02 | M6: 9469213.02 | N6: 0 | O6: 9469213.02 | P6: 0 | Q6: 9469213.02 | R6: 0 | S6: 9555600 | T6: 9555600 | U6: =SUM(U7:U10) -> 3748667.66 | V6: =IF(L6=0,"-U3",IF(U6/L6*100>110,"свыше 100",ROUND((U6/L6*100),1))) -> 39.6
A7: Подпрограмма "Управление муниципальной собственностью и приватизация муниципального имущества до 2020 года" | B7: 000 | C7: 0000 | D7: 0110000000 | E7: 000 | F7: 000 | L7: 1274300 | M7: 1274300 | N7: 0 | O7: 1274300 | P7: 0 | Q7: 1274300 | R7: 0 | S7: 80000 | T7: 80000 | U7: 42000 | V7: 3.3
A8: Подпрограмма "Актуализация сведений государственного кадастра недвижимости в МО Красноуфимский округ до 2020 года" | B8: 000 | C8: 0000 | D8: 0120000000 | E8: 000 | F8: 000 | L8: 4323313.02 | M8: 4323313.02 | N8: 0 | O8: 4323313.02 | P8: 0 | Q8: 4323313.02 | R8: 0 | S8: 5604000 | T8: 5604000 | U8: 1525758.97 | V8: 35.3
A9: Подпрограмма "Обеспечение реализации муниципального программы "Повышение эффективности управления муниципальной собственностью МО Красноуфимский округ до 2020 года" | B9: 000 | C9: 0000 | D9: 0130000000 | E9: 000 | F9: 000 | L9: 3452700 | M9: 3452700 | N9: 0 | O9: 3452700 | P9: 0 | Q9: 3452700 | R9: 0 | S9: 3452700 | T9: 3452700 | U9: 1911580.87 | V9: 55.4
A10: Подпрограмма "Улучшение жилищных условий граждан, проживающих на территории МО Красноуфимский округ" | B10: 000 | C10: 0000 | D10: 0140000000 | E10: 000 | F10: 000 | L10: 418900 | M10: 418900 | N10: 0 | O10: 418900 | P10: 0 | Q10: 418900 | R10: 0 | S10: 418900 | T10: 418900 | U10: 269327.82 | V10: 64.3
A11: Муниципальная программа МО Красноуфимский округ "Развитие системы образования в муниципальном образовании Красноуфимский округ до 2020 года" | B11: 000 | C11: 0000 | D11: 0200000000 | E11: 000 | F11: 000 | L11: 706181990.5 | M11: 706181990.5 | N11: 0 | O11: 706181990.5 | P11: 0 | Q11: 706181990.5 | R11: 0 | S11: 635426000 | T11: 631617800 | U11: =SUM(U12:U17) -> 477981361.2 | V11: 67.7
A12: Подпрограмма "Развитие системы дошкольного образования в МО Красноуфимский округ до 2020 года" | B12: 000 | C12: 0000 | D12: 0210000000 | E12: 000 | F12: 000 | L12: 175656811.7 | M12: 175656811.7 | N12: 0 | O12: 175656811.7 | P12: 0 | Q12: 175656811.7 | R12: 0 | S12: 172451666 | T12: 175599666 | U12: 122457483.9 | V12: 69.7
A13: Подпрограмма "Развитие системы общего образования в Муниципальном образовании Красноуфимский округ до 2020 года" | B13: 000 | C13: 0000 | D13: 0220000000 | E13: 000 | F13: 000 | L13: 436643009.4 | M13: 436643009.4 | N13: 0 | O13: 436643009.4 | P13: 0 | Q13: 436643009.4 | R13: 0 | S13: 407192428 | T13: 405137428 | U13: 294558616 | V13: 67.5
A14: Подпрограмма "Развитие системы дополнительного образования детей в МО Красноуфимский округ до 2020 года" | B14: 000 | C14: 0000 | D14: 0230000000 | E14: 000 | F14: 000 | L14: 20512376.1 | M14: 20512376.1 | N14: 0 | O14: 20512376.1 | P14: 0 | Q14: 20512376.1 | R14: 0 | S14: 20276490 | T14: 20276490 | U14: 13295778.59 | V14: 64.8
A15: Подпрограмма "Организация отдыха и оздоровления детей в каникулярное время в МО Красноуфимский округ до 2020 года" | B15: 000 | C15: 0000 | D15: 0240000000 | E15: 000 | F15: 000 | L15: 14845232.05 | M15: 14845232.05 | N15: 0 | O15: 14845232.05 | P15: 0 | Q15: 14845232.05 | R15: 0 | S15: 14852516 | T15: 15108516 | U15: 13997330.99 | V15: 94.3
A16: Подпрограмма "Укрепление и развитие материально-технической базы образовательных организаций МО Красноуфимский округ" | B16: 000 | C16: 0000 | D16: 0250000000 | E16: 000 | F16: 000 | L16: 28932433.01 | M16: 28932433.01 | N16: 0 | O16: 28932433.01 | P16: 0 | Q16: 28932433.01 | R16: 0 | S16: 9612300 | T16: 4455100 | U16: 21605075.26 | V16: 74.7
A17: Подпрограмма "Обеспечение реализации муниципальной программы МО Красноуфимский округ до 2020 года" | B17: 000 | C17: 0000 | D17: 0260000000 | E17: 000 | F17: 000 | L17: 29592128.17 | M17: 29592128.17 | N17: 0 | O17: 29592128.17 | P17: 0 | Q17: 29592128.17 | R17: 0 | S17: 11040600 | T17: 11040600 | U17: 12067076.48 | V17: 40.8
A18: Муниципальная программа МО Красноуфимский округ "Развитие культуры в МО Красноуфимский округ до 2020 года" | B18: 000 | C18: 0000 | D18: 0300000000 | E18: 000 | F18: 000 | L18: 146920296.2 | M18: 146920296.2 | N18: 0 | O18: 146920296.2 | P18: 0 | Q18: 146920296.2 | R18: 0 | S18: 146801900 | T18: 146801900 | U18: =SUM(U19:U21) -> 99655527.4 | V18: 67.8
A19: Подпрограмма "Развитие культуры и искусства в МО Красноуфимский округ до 2020 года" | B19: 000 | C19: 0000 | D19: 0310000000 | E19: 000 | F19: 000 | L19: 131597277.7 | M19: 131597277.7 | N19: 0 | O19: 131597277.7 | P19: 0 | Q19: 131597277.7 | R19: 0 | S19: 132729500 | T19: 132729500 | U19: 89075083.66 | V19: 67.7
A20: Подпрограмма "Развитие образования в сфере культуры и искусства в МО Красноуфимский округ до 2020 года" | B20: 000 | C20: 0000 | D20: 0320000000 | E20: 000 | F20: 000 | L20: 14788118.53 | M20: 14788118.53 | N20: 0 | O20: 14788118.53 | P20: 0 | Q20: 14788118.53 | R20: 0 | S20: 13537500 | T20: 13537500 | U20: 10260662.04 | V20: 69.4
A21: Подпрограмма "Обеспечение реализации муниципальной программы МО Красноуфимский округ "Развитие культуры в МО Красноуфимский округ до 2020 года" | B21: 000 | C21: 0000 | D21: 0330000000 | E21: 000 | F21: 000 | L21: 534900 | M21: 534900 | N21: 0 | O21: 534900 | P21: 0 | Q21: 534900 | R21: 0 | S21: 534900 | T21: 534900 | U21: 319781.7 | V21: 59.8
A22: Муниципальная программа МО Красноуфимский округ "Градостроительное планирование территорий МО Красноуфимский округ до 2020 года" | B22: 000 | C22: 0000 | D22: 0400000000 | E22: 000 | F22: 000 | L22: 7518069.95 | M22: 7518069.95 | N22: 0 | O22: 7518069.95 | P22: 0 | Q22: 7518069.95 | R22: 0 | S22: 4581000 | T22: 4581000 | U22: 0 | V22: 0
A23: Муниципальная программа МО Красноуфимский округ "Развитие физической культуры, спорта и формирование здорового образа жизни населения и молодежной политики МО Красноуфимский округ до 2020 года" | B23: 000 | C23: 0000 | D23: 0500000000 | E23: 000 | F23: 000 | L23: 4257993.35 | M23: 4257993.35 | N23: 0 | O23: 4257993.35 | P23: 0 | Q23: 4257993.35 | R23: 0 | S23: 3449200 | T23: 3449200 | U23: =SUM(U24:U28) -> 2778127.31 | V23: 65.2
A24: Подпрограмма "Развитие физической культуры, спорта и формирование здорового образа жизни населения МО Красноуфимский округ до 2020 года" | B24: 000 | C24: 0000 | D24: 0510000000 | E24: 000 | F24: 000 | L24: 1332893.35 | M24: 1332893.35 | N24: 0 | O24: 1332893.35 | P24: 0 | Q24: 1332893.35 | R24: 0 | S24: 1502100 | T24: 1502100 | U24: 775626.48 | V24: 58.2
A25: Подпрограмма "Развитие потенциала молодежи в МО Красноуфимский округ до 2020 года" | B25: 000 | C25: 0000 | D25: 0520000000 | E25: 000 | F25: 000 | L25: 1489786 | M25: 1489786 | N25: 0 | O25: 1489786 | P25: 0 | Q25: 1489786 | R25: 0 | S25: 1132786 | T25: 1132786 | U25: 775642.02 | V25: 52.1
A26: Подпрограмма "Патриотическое воспитание молодежи в МО Красноуфимский округ до 2020 года" | B26: 000 | C26: 0000 | D26: 0530000000 | E26: 000 | F26: 000 | L26: 182514 | M26: 182514 | N26: 0 | O26: 182514 | P26: 0 | Q26: 182514 | R26: 0 | S26: 182514 | T26: 182514 | U26: 161156.1 | V26: 88.3
A27: Подпрограмма "Организация трудоустройства несовершеннолетних граждан в МО Красноуфимский округ" | B27: 000 | C27: 0000 | D27: 0540000000 | E27: 000 | F27: 000 | L27: 238000 | M27: 238000 | N27: 0 | O27: 238000 | P27: 0 | Q27: 238000 | R27: 0 | S27: 238000 | T27: 238000 | U27: 237702.71 | V27: 99.9
A28: Подпрограмма "Обеспечение жильем молодых семей в МО Красноуфимский округ до 2020 года" | B28: 000 | C28: 0000 | D28: 0550000000 | E28: 000 | F28: 000 | L28: 1014800 | M28: 1014800 | N28: 0 | O28: 1014800 | P28: 0 | Q28: 1014800 | R28: 0 | S28: 393800 | T28: 393800 | U28: 828000 | V28: 81.6
A29: Муниципальная программа МО Красноуфимский округ "Создание условий для развития малого и среднего предпринимательства, хозяйствующих субъектов в сфере АПК, коллективного садоводства в МО Красноуфимский округ до 2024 года" | B29: 000 | C29: 0000 | D29: 0600000000 | E29: 000 | F29: 000 | L29: 625700 | M29: 625700 | N29: 0 | O29: 625700 | P29: 0 | Q29: 625700 | R29: 0 | S29: 299700 | T29: 299700 | U29: 505000 | V29: 80.7
A30: Муниципальная программа МО Красноуфимский округ "Обеспечение безопасности на территории МО Красноуфимский округ до 2020 года" | B30: 000 | C30: 0000 | D30: 0700000000 | E30: 000 | F30: 000 | L30: 13815018.96 | M30: 13815018.96 | N30: 0 | O30: 13815018.96 | P30: 0 | Q30: 13815018.96 | R30: 0 | S30: 33976520 | T30: 6919700 | U30: =SUM(U31:U37) -> 4080844.76 | V30: 29.5
A31: Подпрограмма «Защита населения и территории МО Красноуфимский округ от чрезвычайных ситуаций природного, техногенного и биолого-социального характера, гражданская оборона» | B31: 000 | C31: 0000 | D31: 0710000000 | E31: 000 | F31: 000 | L31: 894273.96 | M31: 894273.96 | N31: 0 | O31: 894273.96 | P31: 0 | Q31: 894273.96 | R31: 0 | S31: 950600 | T31: 939000 | U31: 380969.55 | V31: 42.6
A32: Подпрограмма "Обеспечение пожарной безопасности на территории МО Красноуфимский округ" | B32: 000 | C32: 0000 | D32: 0720000000 | E32: 000 | F32: 000 | L32: 1287000 | M32: 1287000 | N32: 0 | O32: 1287000 | P32: 0 | Q32: 1287000 | R32: 0 | S32: 1243800 | T32: 1243800 | U32: 657047.65 | V32: 51.1
A33: Подпрограмма "Комплексная профилактика правонарушений на территории МО Красноуфимский округ" | B33: 000 | C33: 0000 | D33: 0730000000 | E33: 000 | F33: 000 | L33: 187500 | M33: 187500 | N33: 0 | O33: 187500 | P33: 0 | Q33: 187500 | R33: 0 | S33: 190000 | T33: 190000 | U33: 152127 | V33: 81.1
A34: Подпрограмма "Мероприятия по профилактике экстемизма и терроризма, а также минимизации и ликвидации последствий проявления терроризма и эксремизма на территории МО Красноуфимский округ" | B34: 000 | C34: 0000 | D34: 0740000000 | E34: 000 | F34: 000 | L34: 194300 | M34: 194300 | N34: 0 | O34: 194300 | P34: 0 | Q34: 194300 | R34: 0 | S34: 194300 | T34: 194300 | U34: 0 | V34: 0
A35: Подпрограмма "Обеспечение безопасности на опасных объектах МО Красноуфимский округ" | B35: 000 | C35: 0000 | D35: 0750000000 | E35: 000 | F35: 000 | L35: 241500 | M35: 241500 | N35: 0 | O35: 241500 | P35: 0 | Q35: 241500 | R35: 0 | S35: 252000 | T35: 252000 | U35: 215760 | V35: 89.3
A36: Подпрограмма "Обеспечение рационального и безопасного природопользования в МО Красноуфимский округ" | B36: 000 | C36: 0000 | D36: 0760000000 | E36: 000 | F36: 000 | L36: 9664345 | M36: 9664345 | N36: 0 | O36: 9664345 | P36: 0 | Q36: 9664345 | R36: 0 | S36: 29785020 | T36: 2689500 | U36: 1782112.73 | V36: 18.4
A37: Подпрограмма "Осуществление переданных полномочий Российской Федерации по осуществлению первичного воинского учета на территориях, где отсутствуют военные комиссариаты" | B37: 000 | C37: 0000 | D37: 0770000000 | E37: 000 | F37: 000 | L37: 1346100 | M37: 1346100 | N37: 0 | O37: 1346100 | P37: 0 | Q37: 1346100 | R37: 0 | S37: 1360800 | T37: 1411100 | U37: 892827.83 | V37: 66.3
A38: Муниципальная программа МО Красноуфимский округ "Совершенствование муниципального управления в МО Красноуфимский округ до 2020 года" | B38: 000 | C38: 0000 | D38: 0800000000 | E38: 000 | F38: 000 | L38: 85415949.48 | M38: 85415949.48 | N38: 0 | O38: 85415949.48 | P38: 0 | Q38: 85415949.48 | R38: 0 | S38: 73986500 | T38: 73998000 | U38: =SUM(U39:U44) -> 49287059.06 | V38: =IF(L38=0,"-U3",IF(U38/L38*100>110,"свыше 100",ROUND((U38/L38*100),1))) -> 57.7
A39: Подпрограмма "Развитие и обеспечение эффективности деятельности администрации Муниципального образования Красноуфимский округ до 2020 года" | B39: 000 | C39: 0000 | D39: 0810000000 | E39: 000 | F39: 000 | L39: 32373315.66 | M39: 32373315.66 | N39: 0 | O39: 32373315.66 | P39: 0 | Q39: 32373315.66 | R39: 0 | S39: 32334800 | T39: 32334800 | U39: 19797431.56 | V39: 61.2
A40: Подпрограмма "Содействие реализации муниципальных функций, связанных с общегосударственным управлением до 2020 года" | B40: 000 | C40: 0000 | D40: 0820000000 | E40: 000 | F40: 000 | L40: 759036 | M40: 759036 | N40: 0 | O40: 759036 | P40: 0 | Q40: 759036 | R40: 0 | S40: 766200 | T40: 766700 | U40: 278429.04 | V40: 36.7
A41: Подпрограмма "Развитие муниципальной службы в Муниципальном образовании Красноуфимский округ до 2020 года" | B41: 000 | C41: 0000 | D41: 0830000000 | E41: 000 | F41: 000 | L41: 40500 | M41: 40500 | N41: 0 | O41: 40500 | P41: 0 | Q41: 40500 | R41: 0 | S41: 40500 | T41: 40500 | U41: 16000 | V41: 39.5
A42: Подпрограмма "Обеспечение деятельности по комплектованию, учету, хранению и использованию архивных документов, хранящихся в архивном отделе администрации МО Красноуфимский округ до 2020 года" | B42: 000 | C42: 0000 | D42: 0840000000 | E42: 000 | F42: 000 | L42: 254000 | M42: 254000 | N42: 0 | O42: 254000 | P42: 0 | Q42: 254000 | R42: 0 | S42: 264000 | T42: 275000 | U42: 84660 | V42: 33.3
A43: Подпрограмма "Информатизация Муниципального образования Красноуфимский округ до 2020 года" | B43: 000 | C43: 0000 | D43: 0850000000 | E43: 000 | F43: 000 | L43: 81000 | M43: 81000 | N43: 0 | O43: 81000 | P43: 0 | Q43: 81000 | R43: 0 | S43: 81000 | T43: 81000 | U43: 12900 | V43: 15.9
A44: Подпрограмма "Техническое обеспечение реализации муниципальной программы "Совершенствование муниципального управления в МО Красноуфимский округ до 2020 года" | B44: 000 | C44: 0000 | D44: 0860000000 | E44: 000 | F44: 000 | L44: 51908097.82 | M44: 51908097.82 | N44: 0 | O44: 51908097.82 | P44: 0 | Q44: 51908097.82 | R44: 0 | S44: 40500000 | T44: 40500000 | U44: 29097638.46 | V44: 56.1
A45: Муниципальная программа МО Красноуфимский округ "Развитие и модернизация жилищно-коммунального хозяйства и дорожного хозяйства, повышение энергетической эффективности в МО Красноуфимский округ до 2020 года" | B45: 000 | C45: 0000 | D45: 0900000000 | E45: 000 | F45: 000 | L45: 204520466.2 | M45: 204520466.2 | N45: 0 | O45: 204520466.2 | P45: 0 | Q45: 204520466.2 | R45: 0 | S45: 155988040 | T45: 155982850 | U45: =SUM(U46:U53) -> 111788600.3 | V45: 54.7
A46: Подпрограмма "Комплексное развитие и модернизация системы коммунальной инфраструктуры МО Красноуфимский округ" | B46: 000 | C46: 0000 | D46: 0910000000 | E46: 000 | F46: 000 | L46: 6250700 | M46: 6250700 | N46: 0 | O46: 6250700 | P46: 0 | Q46: 6250700 | R46: 0 | S46: 3350700 | T46: 3350700 | U46: 5016060.75 | V46: 80.2
A47: Подпрограмма "Повышение качества условий проживания населения МО Красноуфимский округ" | B47: 000 | C47: 0000 | D47: 0920000000 | E47: 000 | F47: 000 | L47: 1420283.72 | M47: 1420283.72 | N47: 0 | O47: 1420283.72 | P47: 0 | Q47: 1420283.72 | R47: 0 | S47: 1423800 | T47: 1423800 | U47: 198625 | V47: 14
A48: Подпрограмма "Энергосбережение и повышение энергетической эффективности МО Красноуфимский округ" | B48: 000 | C48: 0000 | D48: 0930000000 | E48: 000 | F48: 000 | L48: 40508327 | M48: 40508327 | N48: 0 | O48: 40508327 | P48: 0 | Q48: 40508327 | R48: 0 | S48: 6080300 | T48: 6080300 | U48: 3211877.61 | V48: 7.9
A49: Подпрограмма "Комплексное благоустройство территорий МО Красноуфимский округ" | B49: 000 | C49: 0000 | D49: 0940000000 | E49: 000 | F49: 000 | L49: 16141567.51 | M49: 16141567.51 | N49: 0 | O49: 16141567.51 | P49: 0 | Q49: 16141567.51 | R49: 0 | S49: 8218440 | T49: 8214250 | U49: 7765378.31 | V49: 48.1
A50: Подпрограмма "Развитие и обеспечение сохранности сети автомобильных дорог местного значения на территории МО Красноуфимский округ" | B50: 000 | C50: 0000 | D50: 0950000000 | E50: 000 | F50: 000 | L50: 23417199 | M50: 23417199 | N50: 0 | O50: 23417199 | P50: 0 | Q50: 23417199 | R50: 0 | S50: 19800000 | T50: 19800000 | U50: 13371425.66 | V50: 57.1
A51: Подпрограмма "Социальная поддержка граждан и осуществление переданных полномочий Российской Федерации и Свердловской области по предоставлению поддержки отдельным категориям граждан в МО Красноуфимский округ" | B51: 000 | C51: 0000 | D51: 0960000000 | E51: 000 | F51: 000 | L51: 101999425 | M51: 101999425 | N51: 0 | O51: 101999425 | P51: 0 | Q51: 101999425 | R51: 0 | S51: 102249725 | T51: 102248725 | U51: 72581877.82 | V51: 71.2
A52: Подпрограмма "Развитие транспорта и транспортной инфраструктуры в МО Красноуфимский округ" | B52: 000 | C52: 0000 | D52: 0970000000 | E52: 000 | F52: 000 | L52: 1420200 | M52: 1420200 | N52: 0 | O52: 1420200 | P52: 0 | Q52: 1420200 | R52: 0 | S52: 1420200 | T52: 1420200 | U52: 1329301.58 | V52: 93.6
A53: Подпрограмма "Обеспечение реализации муниципальной программы "Развитие и модернизация жилищно-коммунального хозяйства и дорожного хозяйства, повышение энергетической эффективности в МО Красноуфимский округ до 2020 года" | B53: 000 | C53: 0000 | D53: 0980000000 | E53: 000 | F53: 000 | L53: 13362764 | M53: 13362764 | N53: 0 | O53: 13362764 | P53: 0 | Q53: 13362764 | R53: 0 | S53: 13444875 | T53: 13444875 | U53: 8314053.62 | V53: 62.2
A54: Муниципальная программа МО Красноуфимский округ "Управление муниципальными финансами МО Красноуфимский округ до 2020 года" | B54: 000 | C54: 0000 | D54: 1000000000 | E54: 000 | F54: 000 | L54: 7272900 | M54: 7272900 | N54: 0 | O54: 7272900 | P54: 0 | Q54: 7272900 | R54: 0 | S54: 7272900 | T54: 7272900 | U54: =SUM(U55:U56) -> 4219946.41 | V54: 58
A55: Подпрограмма "Управление муниципальным долгом" | B55: 000 | C55: 0000 | D55: 1020000000 | E55: 000 | F55: 000 | L55: 2000 | M55: 2000 | N55: 0 | O55: 2000 | P55: 0 | Q55: 2000 | R55: 0 | S55: 2000 | T55: 2000 | U55: 569.02 | V55: 28.5
A56: Обеспечение реализации муниципальной программы "Управление муниципальными финансами МО Красноуфимский округ до 2020года" | B56: 000 | C56: 0000 | D56: 1030000000 | E56: 000 | F56: 000 | L56: 7270900 | M56: 7270900 | N56: 0 | O56: 7270900 | P56: 0 | Q56: 7270900 | R56: 0 | S56: 7270900 | T56: 7270900 | U56: 4219377.39 | V56: 58
A57: Муниципальная программа МО Красноуфимский округ "Устойчивое развитие сельских территорий муниципального образования Красноуфимский округ до 2020 года" | B57: 000 | C57: 0000 | D57: 1100000000 | E57: 000 | F57: 000 | L57: 21371351.11 | M57: 21371351.11 | N57: 0 | O57: 21371351.11 | P57: 0 | Q57: 21371351.11 | R57: 0 | S57: 8851500 | T57: 8851500 | U57: =SUM(U58:U59) -> 15740367.44 | V57: 73.7
A58: Подпрограмма "Развитие газификации МО Красноуфимский округ до 2020 года" | B58: 000 | C58: 0000 | D58: 1110000000 | E58: 000 | F58: 000 | L58: 17606751.11 | M58: 17606751.11 | N58: 0 | O58: 17606751.11 | P58: 0 | Q58: 17606751.11 | R58: 0 | S58: 8266500 | T58: 8266500 | U58: 14575767.44 | V58: 82.8
A59: Подпрограмма "Улучшение жилищных условий граждан, проживающих в сельской местности, в том числе молодых семей и молодых специалистов, в МО Красноуфимский округ до 2020 года" | B59: 000 | C59: 0000 | D59: 1120000000 | E59: 000 | F59: 000 | L59: 3764600 | M59: 3764600 | N59: 0 | O59: 3764600 | P59: 0 | Q59: 3764600 | R59: 0 | S59: 585000 | T59: 585000 | U59: 1164600 | V59: 30.9
A60: Муниципальная программа МО Красноуфимский округ "Социальная поддержка и благополучие населения МО Красноуфимский округ до 2024г года" | B60: 000 | C60: 0000 | D60: 1200000000 | E60: 000 | F60: 000 | L60: 459000 | M60: 459000 | N60: 0 | O60: 459000 | P60: 0 | Q60: 459000 | R60: 0 | S60: 459000 | T60: 459000 | U60: =SUM(U61:U62) -> 411590 | V60: 89.7
A61: Подпрограмма "Развитие и поддержка некоммерческих общественных организаций и объединений в МО Красноуфимский округ до 2024 года" | B61: 000 | C61: 0000 | D61: 1210000000 | E61: 000 | F61: 000 | L61: 414000 | M61: 414000 | N61: 0 | O61: 414000 | P61: 0 | Q61: 414000 | R61: 0 | S61: 414000 | T61: 414000 | U61: 366600 | V61: 88.6
A62: Подпрограмма "Организация общественных работ в МО Красноуфимский округ до 2024 года" | B62: 000 | C62: 0000 | D62: 1220000000 | E62: 000 | F62: 000 | L62: 45000 | M62: 45000 | N62: 0 | O62: 45000 | P62: 0 | Q62: 45000 | R62: 0 | S62: 45000 | T62: 45000 | U62: 44990 | V62: 100
A63: Муниципальная программа МО Красноуфимский округ "Формирование современной городской среды на территории Муниципального образования Красноуфимский округ на 2017-2022 годы" | B63: 000 | C63: 0000 | D63: 1300000000 | E63: 000 | F63: 000 | L63: 882115 | M63: 882115 | N63: 0 | O63: 882115 | P63: 0 | Q63: 882115 | R63: 0 | S63: 220560 | T63: 224750 | U63: 223713.4 | V63: 25.4
A64: Всего расходов: | L64: 1208710064 | M64: 1208710064 | N64: 0 | O64: 1208710064 | P64: 0 | Q64: 1208710064 | R64: 0 | S64: 1080868420 | T64: 1050013900 | U64: =U63+U57+U54+U45+U38+U30+U29+U23+U22+U18+U11+U6+U60 -> 770420805 | V64: 63.7
